Cogmind - Beta 17 --- EXPLORER MODE // 2026.08.01 @ 20:29:31 Player: 0xKSL Result: Destroyed by S-43 Plague with Heavy Machine Gun Performance ------------- Evolutions (9) 4500 Regions Visited (12) 2400 Robots Destroyed (130) 650 Value Destroyed (5107) 5107 Prototype IDs (5) 100 Alien Tech Used (0) 0 Bonus (10495) 10495 TOTAL SCORE: 23252 Bonus ------- High Alert Combat Kills 64 Follower Combat Kills 301 Prayed to X0-1V1 5000 Major X0-1V1 Interference 4650 Entered DSFs 500 Friendly Fire -20 Cogmind --------- Core Integrity 0/1740 Matter 45/300 Energy 84/100 System Corruption 7% Temperature Cool (1) Movement Flying (40) Location -1/Access Parts ------- > --- POWER (3) -------- (None) > --- PROPULSION (7) --- Xenon Bombardment Thruster > --- UTILITY (10) ----- (None) > --- WEAPON (6) ------- (None) > --- INVENTORY (5) ---- Tesla Rifle Disruptor Cannon Railgun Hypervelocity Railgun Remote Datajack Peak State ------------ > --- POWER ------------ Light Ion Engine Improved Deuterium Engine > --- PROPULSION ------- Flexi-carbon Leg Myomer Leg Myomer Leg Myomer Leg Biometal Leg Improved Thunder Leg > --- UTILITY ---------- Weight Redist. System Improved Target Analyzer Weapon Cycler Authchip [R/Combat] Component Analysis Suite Improved Recalibrator X0-1V1's Piety Tracker > --- WEAPON ----------- Phase Gun Disruptor Cannon Railgun Linear Accelerator Improved Remote Datajack Power Maul Carbide Saw > --- INVENTORY -------- Tesla Rifle Plasma Rifle Disruptor Cannon Remote Datajack [Rating: 130] Favorites ----------- Power Improved Deuterium Engine Engine Improved Deuterium Engine Power Core Neutrino Core Reactor Light Antimatter Reactor Propulsion Advanced Treads Treads Advanced Treads Leg Aluminum Leg Flight Unit Impulse Thruster Array Utility X0-1V1's Piety Tracker Device X0-1V1's Piety Tracker Storage Large Storage Unit Processor Signal Interpreter Hackware Authchip [R/Combat] Protection Hardened Medium Armor Plating Weapon Assault Rifle Energy Gun Plasma Rifle Energy Cannon Beam Cannon Ballistic Gun Assault Rifle Ballistic Cannon Enhanced Gauss Cannon Launcher Heavy Missile Launcher Special Weapon Improved Remote Datajack Impact Weapon Heavy Flail Slashing Weapon Carbide Saw Piercing Weapon Force Lance Special Melee Weapon Chaos Jack Build | -11 -10 -10 -8 -7 -7 -6 -5 -4 -4 -3 -2 -1 ------- Run | Yrd Mat Sub Mat Fac DSF Fac Fac Fac Ext Res Res Acc Slots Evolved 19 | . 1 . 4 2 . 2 2 2 . 2 2 2 Power 1 | . . . . . . 1 . . . . . . Propulsion 6 | . . . 2 1 . . 1 1 . . . 1 Utility 8 | . . . 2 . . 1 . 1 . 1 2 1 Weapon 4 | . 1 . . 1 . . 1 . . 1 . . Parts Attached 137 | . 14 2 18 2 6 11 10 5 30 8 9 22 Power 19 | . 2 1 3 . 1 3 1 . 4 1 2 1 Engine 11 | . 2 1 1 . 1 3 . . 2 1 . . Core 5 | . . . 2 . . . 1 . 1 . 1 . Reactor 3 | . . . . . . . . . 1 . 1 1 Propulsion 48 | . 2 1 7 1 5 4 3 1 8 2 4 10 Treads 21 | . . . 4 1 5 4 3 1 3 . . . Leg 23 | . 2 1 3 . . . . . 5 2 1 9 Wheel . | . . . . . . . . . . . . . Hover . | . . . . . . . . . . . . . Flight 4 | . . . . . . . . . . . 3 1 Utility 25 | . 3 . 4 . . 1 1 1 8 2 1 4 Device 16 | . 2 . 1 . . 1 1 . 5 2 1 3 Storage 2 | . 1 . . . . . . . 1 . . . Processor 2 | . . . 1 . . . . . 1 . . . Hackware 1 | . . . . . . . . . 1 . . . Protection 4 | . . . 2 . . . . 1 . . . 1 Artifact . | . . . . . . . . . . . . . Weapon 45 | . 7 . 4 1 . 3 5 3 10 3 2 7 Energy Gun 6 | . . . . . . 1 . 2 . 1 1 1 Energy Cannon 8 | . 1 . . 1 . 1 1 . 1 1 . 2 Ballistic Gun 17 | . 6 . 3 . . . 2 1 5 . . . Ballistic Cannon 3 | . . . . . . . 1 . 1 1 . . Launcher 5 | . . . . . . 1 1 . 1 . . 2 Special Weapon 2 | . . . . . . . . . 1 . . 1 Impact Weapon 2 | . . . 1 . . . . . 1 . . . Slashing Weapon 1 | . . . . . . . . . . . 1 . Piercing Weapon 1 | . . . . . . . . . . . . 1 Special Melee Weapon . | . . . . . . . . . . . . . Unidentified Prototypes 4 | . 1 . 1 . . . . . 1 . . 1 Corrupted Parts 1 | . . . . . . . . . 1 . . . System Corruption 1 | . . . . . . . . . 1 . . . Parts Lost 68 | . . . . . . 1 1 . 23 4 16 23 Power 10 | . . . . . . . . . 4 1 3 2 Propulsion 23 | . . . . . . . 1 . 6 2 6 8 Utility 12 | . . . . . . . . . 5 . 2 5 Weapon 23 | . . . . . . 1 . . 8 1 5 8 Highest Loss Streak 22 | . . . . . . 1 1 . 22 3 10 8 To Critical Strikes 3 | . . . . . . . 1 . . . . 2 Average Backups 10 | . 9 10 13 12 14 14 12 13 9 4 4 5 Power 1 | . . . 1 2 3 2 3 3 1 . . . Propulsion 2 | . 2 3 5 4 3 2 1 2 1 . . . Utility 2 | . 4 5 2 3 3 4 4 3 2 . . . Weapon 3 | . 1 2 4 3 3 5 3 5 3 2 3 4 Tool/Special . | . . . . . . . . . . . . . Unused Backups 19 | . 5 . 3 . . . 1 . 4 . 1 5 Power . | . . . . . . . . . . . . . Propulsion 1 | . 1 . . . . . . . . . . . Utility 8 | . 4 . 2 . . . . . 2 . . . Weapon 9 | . . . 1 . . . 1 . 2 . 1 4 Tool/Special 1 | . . . . . . . . . . . . 1 Average Slot Usage (%) 84 | . 94 100 99 99 99 99 98 99 75 82 47 28 Engine 5 | . 8 12 5 7 7 8 6 4 3 5 1 . Core 1 | . . . 2 . . 3 3 4 1 . . . Treads 13 | . . . 15 28 27 25 25 29 12 . . . Leg 9 | . 24 25 12 . . . . . 7 21 11 7 Device 12 | . 10 12 8 14 14 17 16 14 12 16 11 3 Storage 5 | . 12 12 8 7 7 6 5 4 2 . . . Processor 3 | . . . 7 7 7 6 5 4 3 4 2 . Protection 1 | . 1 . 7 . . . . 4 1 . . 1 Energy Gun 1 | . . . . . . 4 . 1 1 2 3 1 Energy Cannon 5 | . 7 . . 6 7 8 10 9 5 1 1 2 Ballistic Gun 15 | . 27 37 25 21 21 10 15 13 8 4 2 . Ballistic Cannon 1 | . . . . . . . 4 4 1 3 2 . Launcher 1 | . . . . . . 5 1 . 1 3 . 1 Impact Weapon 1 | . . . 5 7 7 . . . 2 4 2 . Peak Build Rating 130 | . 21 25 38 40 50 67 79 98 110 124 130 128 Average Rating 59 | . 8 21 34 39 45 62 70 90 88 114 75 72 On Entrance 50 | 7 7 21 25 38 40 50 55 79 98 101 117 16 Avg Prop Armor Cover (%) 8 | . . . 6 . . 5 5 . 3 6 11 8 Naked Turns 148 | . . . . . . . . . 41 . 50 57 Heaviest Build 156 | 20 30 32 51 47 47 68 79 91 156 68 60 100 Greatest Support 153 | 20 20 30 60 80 88 94 117 147 147 153 107 119 Greatest Overweight (x) 30 | . 6 1 1 . . 1 . . 30 1 16 3 Average Overweight (x) . | . . 1 . . . . . . . . . . Largest Inventory Capacity 25 | . 15 15 15 15 15 15 15 15 25 5 5 5 Average Capacity 12 | . 11 15 15 15 15 15 15 15 13 5 5 5 Most Carried 17 | . 11 13 15 13 15 15 15 15 17 5 5 5 Average Carried 10 | . 9 11 14 12 14 14 12 14 9 4 4 5 Final Capacity 15 | 10 15 15 15 15 15 15 15 15 5 5 5 5 Final Carried 15 | 7 10 13 14 12 15 12 14 15 5 4 5 5 Class Distribution -------------------- 19% | Scavenger-Executioner 19% | Hacker-Skirmisher 17% | Hacker-Gunner 14% | Hacker-Executioner 12% | Hacker-Tank 9% | Hacker-Mutant 3% | Scientist-Tank Dominant Class ---------------- Hacker-Gunner | -10/Materials Hacker-Gunner | -10/Subcaves Hacker-Tank | -8/Materials Hacker-Skirmisher | -7/Factory Hacker-Skirmisher | -7/DSF Hacker-Skirmisher | -6/Factory Hacker-Executioner | -5/Factory Scavenger-Executioner | -4/Factory Scavenger-Executioner | -4/Extension Scavenger-Executioner | -3/Research Hacker-Mutant | -2/Research Hacker-Mutant | -1/Access Resources | -11 -10 -10 -8 -7 -7 -6 -5 -4 -4 -3 -2 -1 ----------- Run | Yrd Mat Sub Mat Fac DSF Fac Fac Fac Ext Res Res Acc Matter Collected 4057 | 162 268 152 576 83 166 383 786 118 1044 105 76 138 Remotely . | . . . . . . . . . . . . . Salvage Created 5187 | . 299 48 843 28 368 707 710 213 1096 355 60 460 Parts 263 | . 16 4 46 1 25 40 42 15 45 8 1 20 Haulers Intercepted 1 | . . . 1 . . . . . . . . . Recyclers Shooed 7 | . . . 2 . . 2 2 . 1 . . . Parts Field Recycled . | . . . . . . . . . . . . . Retrieved Matter . | . . . . . . . . . . . . . Parts Self-Destructed . | . . . . . . . . . . . . . Prevented . | . . . . . . . . . . . . . Parts Restored 2 | . . . . . . . . . . 2 . . Broken 2 | . . . . . . . . . . 2 . . Kills | -11 -10 -10 -8 -7 -7 -6 -5 -4 -4 -3 -2 -1 ------- Run | Yrd Mat Sub Mat Fac DSF Fac Fac Fac Ext Res Res Acc Combat Hostiles Destroyed 90 | . 8 1 13 . 8 13 10 6 12 9 1 9 Melee 1 | . . . . . . . . . 1 . . . Guns 41 | . 4 1 13 . 6 6 3 1 4 1 . 2 Cannons 24 | . 4 . . . 2 1 6 5 2 2 1 1 AOE 17 | . . . . . . 5 . . 2 6 . 4 Classes Destroyed 17 | . 4 1 4 . 1 4 1 1 1 . . . Worker 9 | . . . 2 . . 1 3 . 3 . . . Builder 9 | . . . 2 . . 1 4 . 1 1 . . Tunneler 4 | . . . . . . . 2 . 2 . . . Hauler 1 | . . . 1 . . . . . . . . . Recycler 4 | . 1 . 1 . . . . . 2 . . . Operator 3 | . . . . . . . . . 1 1 . 1 Watcher 10 | . 2 . 2 1 . 2 2 . 1 . . . Swarmer 22 | . 6 . 2 . 2 3 . 4 2 . . 3 Grunt 40 | . 2 . 9 . 5 1 6 . 3 9 . 5 Brawler 1 | . . . . . . 1 . . . . . . Sentry 11 | . . . 2 . . 4 2 . 2 . 1 . Specialist 2 | . . . . . . 2 . . . . . . Hunter 8 | . . . . . . 1 2 . 4 . . 1 Programmer 2 | . . . . . . . . 2 . . . . Heavy 1 | . . . . . 1 . . . . . . . Behemoth 2 | . . . . . . 1 . . 1 . . . Subdweller 1 | . . 1 . . . . . . . . . . Best Kill Streak 8 | . 3 1 7 1 3 5 4 4 6 8 1 4 Combat Bots Only 7 | . 2 1 3 . 3 5 4 4 4 7 1 4 Max Kills in Single Turn 4 | . 1 1 1 1 1 3 4 1 3 3 1 4 Gunslinging . | . . . . . . . . . . . . . Exploded 3 | . . . . . . 2 . . 1 2 . 3 Melee 1 | . . . . . . . . . 1 . . . Uniques/NPCs Destroyed . | . . . . . . . . . . . . . Combat | -11 -10 -10 -8 -7 -7 -6 -5 -4 -4 -3 -2 -1 -------- Run | Yrd Mat Sub Mat Fac DSF Fac Fac Fac Ext Res Res Acc Hostile Shots Fired 1809 | . 24 2 36 . 24 124 54 24 375 46 226 874 Missed 648 | . 6 . 10 . 7 48 7 8 120 9 65 368 Hits 1161 | . 18 2 26 . 17 76 47 16 255 37 161 506 Projectile 1161 | . 18 2 26 . 17 76 47 16 255 37 161 506 AOE 1 | . . . . . . . . . . . . 1 Critical Strikes 49 | . . . 1 . 4 2 4 1 7 6 12 12 Part Disruptions 2 | . . . . . . 2 . . . . . . Damage Taken 15726 | . 109 27 242 . 235 889 594 287 3931 830 2602 5980 Core 4787 | . 23 . 11 . 35 306 27 . 940 359 936 2150 Absorbed by Shields . | . . . . . . . . . . . . . Ignored by Resistances 10691 | . 76 17 143 . 138 397 348 171 2534 366 1505 4996 Core Remaining (%) 76 | 100 . 90 98 . 95 61 97 . 27 75 41 . Volleys Fired 205 | . 18 2 39 1 16 40 25 7 31 10 5 11 Largest 7 | . 3 3 3 4 4 5 6 6 7 5 4 3 Hottest 361 | . 100 60 71 131 131 245 269 331 361 307 258 221 Shots Fired 758 | . 54 6 117 4 64 126 129 41 146 37 14 20 Gun 494 | . 39 6 117 3 48 76 62 21 92 18 8 4 Cannon 226 | . 15 . . 1 16 40 65 20 47 9 6 7 Launcher 38 | . . . . . . 10 2 . 7 10 . 9 Special . | . . . . . . . . . . . . . Kinetic 508 | . 39 6 117 3 48 59 86 25 97 18 10 . Thermal 168 | . 15 . . 1 16 57 25 9 23 8 3 11 Explosive 38 | . . . . . . 10 2 . 7 10 . 9 Electromagnetic 44 | . . . . . . . 16 7 19 1 1 . Robot Hit Streak 52 | . 5 10 26 29 52 29 23 16 33 7 20 33 Robot Miss Streak 6 | . 2 . 2 . 3 2 2 1 6 1 . . Penetration Max 2 | . . . . . . . 1 . 2 . . . Secondary Targets 2 | . . . 2 . . . . . . . . . Max Gunslinging Chain 1 | . . . 1 . . . . . . . . . Shots Hit Robots 552 | . 27 5 88 3 46 94 83 20 115 30 15 26 Core Hits 286 | . 15 3 39 2 20 48 47 9 44 27 5 27 Critical Kills 6 | . . . . . . 1 2 . 2 . . 1 Critical Parts Destroyed 10 | . 1 . 2 . . . 1 . 6 . . . Critical Strikes 27 | . 1 . 2 . . 3 6 1 11 1 1 1 Burn 2 | . . . . . . 2 . . . . . . Meltdown 2 | . . . . . . . 1 . . . . 1 Destroy 11 | . 1 . 1 . . 1 2 . 6 . . . Blast 7 | . . . . . . . 3 1 2 1 . . Smash 4 | . . . 1 . . . . . 3 . . . Sever 1 | . . . . . . . . . . . 1 . Melee Attacks 29 | . . . 6 . . . . . 5 3 2 13 Impact 14 | . . . 6 . . . . . 5 3 . . Slashing 2 | . . . . . . . . . . . 2 . Piercing 13 | . . . . . . . . . . . . 13 Sneak Attacks 5 | . . . 3 . . . . . 1 . . 1 Combat Hostiles . | . . . . . . . . . . . . . Follow-up Attacks 1 | . . . . . . . . . . . . 1 Damage Inflicted 17309 | . 440 62 1740 48 726 2737 2202 488 4166 2438 489 1773 Guns 6328 | . 262 62 1254 31 497 1020 594 224 1822 281 157 124 Cannons 4183 | . 175 . . 17 229 626 1200 264 976 294 144 258 Explosions 5488 | . . . . . . 1084 408 . 909 1706 142 1239 Melee 1236 | . . . 481 . . . . . 420 157 44 134 Ramming 74 | . 3 . 5 . . 7 . . 39 . 2 18 Kinetic 6862 | . 262 62 1254 31 497 662 1067 229 2066 419 271 42 Thermal 2724 | . 175 . . 17 229 984 296 124 373 156 30 340 Explosive 5488 | . . . . . . 1084 408 . 909 1706 142 1239 Electromagnetic 925 | . . . . . . . 431 135 359 . . . Impact 1058 | . . . 481 . . . . . 420 157 . . Slashing 44 | . . . . . . . . . . . 44 . Piercing 134 | . . . . . . . . . . . . 134 Highest Corruption 21 | . . . . . 15 4 . 8 21 . 21 7 Average Corruption 9 | . . . . . 15 2 . 6 11 . 12 4 Corruption Purged 3 | . . . . . . . . . 3 . . . Corruption Blocked . | . . . . . . . . . . . . . Effects 74 | . . . . . 2 6 . 17 38 . 9 2 Message Errors 17 | . . . . . . 1 . 5 10 . 1 . Matter Fused 21 | . . . . . 1 1 . 4 10 . 4 1 Heat Flow Errors 6 | . . . . . . . . 3 3 . . . Energy Discharges 11 | . . . . . . . . 2 7 . 1 1 Parts Rejected 1 | . . . . . . 1 . . . . . . Data Loss (minor) 7 | . . . . . 1 2 . . 4 . . . Data Loss (major) 3 | . . . . . . . . 2 1 . . . Misfires 1 | . . . . . . . . . 1 . . . Misdirections 3 | . . . . . . . . . . . 3 . Weapon Failures 4 | . . . . . . 1 . 1 2 . . . Overload Shots . | . . . . . . . . . . . . . Overflow Damage 947 | . . . 261 . . 52 59 . 378 129 . 68 Projectiles 53 | . . . . . . . 16 . 37 . . . Explosions 447 | . . . . . . 52 43 . 155 129 . 68 Melee 447 | . . . 261 . . . . . 186 . . . Knockbacks 9 | . . . 4 . . . 2 . 1 2 . . Impact 6 | . . . 4 . . . . . 1 1 . . Kinetic 3 | . . . . . . . 2 . . 1 . . Secondary . | . . . . . . . . . . . . . Self-Inflicted Damage 165 | . . . . . . . . . 15 111 . 39 Shots 8 | . . . . . . . . . 2 5 . 1 Rammed 10 | . . . . . . 2 . . 2 . 5 1 Targets Rammed 14 | . 2 . 1 . . 2 . . 3 . 5 1 Kicked 4 | . 2 . 1 . . . . . 1 . . . Crushed . | . . . . . . . . . . . . . Highest Temperature 764 | . 223 . 233 76 378 691 702 596 702 764 193 324 Average Temperature 201 | . 68 . 82 38 159 228 250 221 246 315 50 132 Received Heat Transfer 3033 | . 60 12 189 . 162 105 279 . 967 227 234 798 Effects 110 | . . . 1 . . 39 20 8 24 18 . . Shutdowns 40 | . . . . . . 10 11 3 10 6 . . Energy Bleed 13 | . . . 1 . . 4 2 1 3 2 . . Interference 15 | . . . . . . 9 5 1 . . . . Matter Decay 6 | . . . . . . 1 . 3 2 . . . Short Circuit 9 | . . . . . . 4 1 . 1 3 . . Damage (minor) 9 | . . . . . . 2 1 . 2 4 . . Damage (major) 13 | . . . . . . 7 . . 4 2 . . Damage (core) 5 | . . . . . . 2 . . 2 1 . . Siege Activations . | . . . . . . . . . . . . . Martial Activations . | . . . . . . . . . . . . . Shielding Activations . | . . . . . . . . . . . . . Robots Disrupted . | . . . . . . . . . . . . . Combat Hostiles . | . . . . . . . . . . . . . Robots Corrupted 5 | . . . 1 . . . . . 4 . . . Combat Hostiles 3 | . . . . . . . . . 3 . . . Parts Fried 10 | . . . . . . . 1 . 9 . . . Impact Corruptions 11 | . . . 5 . . . . . 6 . . . Robots Melted 5 | . . . . . . 1 1 . 1 . . 2 Combat Hostiles 5 | . . . . . . 1 1 . 1 . . 2 Parts Melted 10 | . . . . . . 3 5 . . . . 2 Heat Transferred 5216 | . 370 . . 37 481 2110 629 224 773 222 37 333 Parts Sabotaged . | . . . . . . . . . . . . . Parts Stolen . | . . . . . . . . . . . . . Parts Stripped . | . . . . . . . . . . . . . Power Chain Reactions . | . . . . . . . . . . . . . Alert | -11 -10 -10 -8 -7 -7 -6 -5 -4 -4 -3 -2 -1 ------- Run | Yrd Mat Sub Mat Fac DSF Fac Fac Fac Ext Res Res Acc Maximum Alert Level 2 | . . . . . . . 2 . 1 2 . 1 Low Security (%) 89 | . 100 . 100 100 100 100 39 100 89 28 100 81 Level 1 5 | . . . . . . . 3 . 10 51 . 18 Level 2 4 | . . . . . . . 57 . . 19 . . Level 3 . | . . . . . . . . . . . . . Level 4 . | . . . . . . . . . . . . . Level 5 . | . . . . . . . . . . . . . High Security . | . . . . . . . . . . . . . Max Security . | . . . . . . . . . . . . . Peak Influence 489 | . 86 . 93 25 190 171 489 159 298 419 146 261 Initial 159 | . . . . 25 . 73 55 159 9 98 146 7 Average 72 | . 8 . 17 8 79 40 308 41 63 300 46 96 Influence Increases 4262 | . 211 . 368 10 190 503 778 152 805 426 115 704 Destroy 0b10 Robot/C 1920 | . 160 . 260 . 160 300 240 120 240 180 20 240 Destroy 0b10 Robot/NC 215 | . 15 . 40 5 . 25 55 . 55 10 . 10 Destroy Leader 430 | . 34 . 66 2 30 80 74 20 42 30 10 42 Allied During Kill 26 | . . . . . . 7 5 . 7 . . 7 Successful Hack 3 | . . . . 3 . . . . . . . . Disable Machine 40 | . . . . . . 4 16 4 4 8 4 . Destroy Structure 843 | . 2 . 2 . . 87 146 8 124 198 81 195 Lose Combat Pursuer 345 | . . . . . . . 30 . 105 . . 210 Miscellaneous 440 | . . . . . . . 212 . 228 . . . Influence Decreases 4217 | . 211 . 290 85 3 537 491 569 578 330 448 675 Entered New Map 942 | . . . . 53 3 117 101 284 17 155 203 9 Time Decay 2784 | . 211 . 290 32 . 410 360 285 474 135 165 422 Lost Part 387 | . . . . . . 10 10 . 67 40 80 180 Lost Ally 104 | . . . . . . . 20 . 20 . . 64 Squads Dispatched 25 | . . . 2 . 1 4 3 2 2 4 2 5 Investigation 5 | . . . 2 . . . 1 1 1 . . . Extermination 7 | . . . . . . 2 . 1 . . 2 2 Reinforcement 10 | . . . . . 1 1 2 . 1 2 . 3 Assault . | . . . . . . . . . . . . . Garrison 3 | . . . . . . 1 . . . 2 . . Intercept . | . . . . . . . . . . . . . Searches Triggered . | . . . . . . . . . . . . . Construction Impeded 2 | . . . . . . . . . 1 1 . . Haulers Reinforced . | . . . . . . . . . . . . . Active Scanning Responses . | . . . . . . . . . . . . . Cargo Convoy Interrupts 1 | . . . . . . 1 . . . . . . Stealth | -11 -10 -10 -8 -7 -7 -6 -5 -4 -4 -3 -2 -1 --------- Run | Yrd Mat Sub Mat Fac DSF Fac Fac Fac Ext Res Res Acc Distress Signals 6 | . . . 1 . . . 2 . 2 . . 1 Communications Jammed . | . . . . . . . . . . . . . Distress Signals . | . . . . . . . . . . . . . Times Spotted 196 | . 15 1 16 1 8 24 15 7 25 13 9 62 Peak Tracking Total 21 | . 3 1 3 1 3 7 6 4 6 8 6 21 Tactical Retreats 13 | . . . . . . . 2 . 5 . . 6 Traps | -11 -10 -10 -8 -7 -7 -6 -5 -4 -4 -3 -2 -1 ------- Run | Yrd Mat Sub Mat Fac DSF Fac Fac Fac Ext Res Res Acc Traps Triggered 12 | . 5 . . . 2 1 . 2 1 . 1 . Indirectly . | . . . . . . . . . . . . . Trap Hack Attempts . | . . . . . . . . . . . . . Triggered . | . . . . . . . . . . . . . Disarmed . | . . . . . . . . . . . . . Reprogrammed . | . . . . . . . . . . . . . Reused . | . . . . . . . . . . . . . Traps Extracted . | . . . . . . . . . . . . . Installed . | . . . . . . . . . . . . . Triggered . | . . . . . . . . . . . . . Machines | -11 -10 -10 -8 -7 -7 -6 -5 -4 -4 -3 -2 -1 ---------- Run | Yrd Mat Sub Mat Fac DSF Fac Fac Fac Ext Res Res Acc Machines Disabled 13 | . . . . . . 1 4 1 4 2 1 . Max in Single Turn 2 | . . . . . . 1 1 1 2 1 1 . Machines Repaired . | . . . . . . . . . . . . . Machines Dismantled . | . . . . . . . . . . . . . Machines Sabotaged . | . . . . . . . . . . . . . Overloaded Fab Kills . | . . . . . . . . . . . . . Hacking | -11 -10 -10 -8 -7 -7 -6 -5 -4 -4 -3 -2 -1 --------- Run | Yrd Mat Sub Mat Fac DSF Fac Fac Fac Ext Res Res Acc Machines Accessed 5 | . . . 1 1 . 1 1 . 1 . . . Terminals 4 | . . . . 1 . 1 1 . 1 . . . Fabricators . | . . . . . . . . . . . . . Repair Stations . | . . . . . . . . . . . . . Recycling Units . | . . . . . . . . . . . . . Scanalyzers 1 | . . . 1 . . . . . . . . . Garrison Access . | . . . . . . . . . . . . . Total Hacks 11 | . . . 7 1 . 1 1 . 1 . . . Successful 10 | . . . 7 1 . . 1 . 1 . . . Failed 1 | . . . . . . 1 . . . . . . Catastrophic 1 | . . . . . . 1 . . . . . . Database Lockouts . | . . . . . . . . . . . . . Manual 2 | . 1 . . . . 1 . . . . . . Terminals 4 | . . . . 1 . 1 1 . 1 . . . Fabricators . | . . . . . . . . . . . . . Repair Stations . | . . . . . . . . . . . . . Recycling Units . | . . . . . . . . . . . . . Scanalyzers 7 | . . . 7 . . . . . . . . . Garrison Access . | . . . . . . . . . . . . . Terminal Hacks 3 | . . . . 1 . . 1 . 1 . . . Record 1 | . . . . . . . . . 1 . . . Open DSF 2 | . . . . 1 . . 1 . . . . . Fabricator Hacks . | . . . . . . . . . . . . . Repair Station Hacks . | . . . . . . . . . . . . . Recycling Unit Hacks . | . . . . . . . . . . . . . Scanalyzer 7 | . . . 7 . . . . . . . . . Retrieve Study 7 | . . . 7 . . . . . . . . . Garrison Access Hacks . | . . . . . . . . . . . . . Unauthorized Hacks . | . . . . . . . . . . . . . Terminals . | . . . . . . . . . . . . . Fabricators . | . . . . . . . . . . . . . Repair Stations . | . . . . . . . . . . . . . Recycling Units . | . . . . . . . . . . . . . Scanalyzers . | . . . . . . . . . . . . . Garrison Access . | . . . . . . . . . . . . . Data Cores Recovered . | . . . . . . . . . . . . . Used . | . . . . . . . . . . . . . Hacking Detections 5 | . . . 1 1 . 1 1 . 1 . . . Full Trace Events 1 | . . . 1 . . . . . . . . . Feedback Events . | . . . . . . . . . . . . . Feedback Blocked . | . . . . . . . . . . . . . Robot Schematics Acquired . | . . . . . . . . . . . . . Robots Built . | . . . . . . . . . . . . . Authchips . | . . . . . . . . . . . . . Time . | . . . . . . . . . . . . . Total Robot Build Rating . | . . . . . . . . . . . . . Part Schematics Acquired . | . . . . . . . . . . . . . Parts Built . | . . . . . . . . . . . . . Authchips . | . . . . . . . . . . . . . Time . | . . . . . . . . . . . . . Total Part Build Rating . | . . . . . . . . . . . . . Part Studies Acquired 7 | . . . 7 . . . . . . . . . Parts Repaired . | . . . . . . . . . . . . . Time . | . . . . . . . . . . . . . Parts Recycled . | . . . . . . . . . . . . . Recycled Matter . | . . . . . . . . . . . . . Retrieved Matter . | . . . . . . . . . . . . . Retrieved Components . | . . . . . . . . . . . . . Parts Scanalyzed . | . . . . . . . . . . . . . Part Schematics Acquired . | . . . . . . . . . . . . . Parts Damaged . | . . . . . . . . . . . . . Bothacking | -11 -10 -10 -8 -7 -7 -6 -5 -4 -4 -3 -2 -1 ------------ Run | Yrd Mat Sub Mat Fac DSF Fac Fac Fac Ext Res Res Acc Used RIF Installer . | . . . . . . . . . . . . . Robots Hacked . | . . . . . . . . . . . . . Non-combat . | . . . . . . . . . . . . . Combat . | . . . . . . . . . . . . . Robot Hacks Applied . | . . . . . . . . . . . . . Relay Couplers Released . | . . . . . . . . . . . . . Fabnet Peak Effective % . | . . . . . . . . . . . . . Robots Rewired . | . . . . . . . . . . . . . Allies Hacked 1 | . . . . . . . . . . . . 1 Hacks Repelled . | . . . . . . . . . . . . . Allies | -11 -10 -10 -8 -7 -7 -6 -5 -4 -4 -3 -2 -1 -------- Run | Yrd Mat Sub Mat Fac DSF Fac Fac Fac Ext Res Res Acc Total Allies 10 | . . . . . . 5 . . 1 . . 4 Largest Group 5 | . . . . . . 5 4 . 1 . . 2 Highest-Rated Group 290 | . . . . . . 205 164 . 99 . . 290 Highest-Rated Ally 145 | . . . . . . 41 41 . 99 . . 145 Total Orders . | . . . . . . . . . . . . . Ally Attacks 67 | . . . . . . 8 16 . 13 . . 30 Total Damage 2418 | . . . . . . 202 383 . 354 . . 1479 Kills 8 | . . . . . . 2 2 . . . . 4 Allies Corrupted 2 | . . . . . . . . . . . . 2 Allies Melted . | . . . . . . . . . . . . . X0-1V1 Amusement Gains 270 | . 20 . . 15 5 78 25 . 15 30 10 72 Good Acts 55 | . . . 1 . 2 6 5 3 13 2 8 15 Bad Acts 41 | . 1 . 4 . 3 7 4 3 5 . 7 7 Intel | -11 -10 -10 -8 -7 -7 -6 -5 -4 -4 -3 -2 -1 ------- Run | Yrd Mat Sub Mat Fac DSF Fac Fac Fac Ext Res Res Acc Active Infowar (turns) 2834 | . 922 . 9 85 377 709 450 . . . . 282 Sensors 1912 | . . . 9 85 377 709 450 . . . . 282 Seismic 922 | . 922 . . . . . . . . . . . Robot Analysis Total . | . . . . . . . . . . . . . Derelict Logs Recovered . | . . . . . . . . . . . . . Drone Launches . | . . . . . . . . . . . . . Drone Recoveries . | . . . . . . . . . . . . . Exploration | -11 -10 -10 -8 -7 -7 -6 -5 -4 -4 -3 -2 -1 ------------- Run | Yrd Mat Sub Mat Fac DSF Fac Fac Fac Ext Res Res Acc Turns Passed 6557 | . 1046 135 730 85 377 802 487 601 1105 188 348 653 Spaces Moved 3915 | 1 537 65 384 51 203 435 232 367 643 110 315 572 Core 384 | . 1 . . . . . . . 83 . 122 178 Treads 1700 | . . . 186 51 203 435 232 367 226 . . . Legs 1687 | 1 536 65 198 . . . . . 334 110 50 393 Wheels . | . . . . . . . . . . . . . Hover . | . . . . . . . . . . . . . Flight 144 | . . . . . . . . . . . 143 1 Fastest Speed 37 | 120 120 190 113 160 145 151 153 154 50 116 37 40 Average Speed 140 | 120 177 192 145 160 153 153 154 154 144 125 73 97 Slowest Speed 1550 | 120 350 200 186 160 160 233 156 156 1550 185 850 200 Overloaded Moves . | . . . . . . . . . . . . . Propulsion Burnouts . | . . . . . . . . . . . . . Robots Hopped . | . . . . . . . . . . . . . Potential Cave-ins . | . . . . . . . . . . . . . Cave-ins Triggered . | . . . . . . . . . . . . . Exploration Rate (%) 27 | 2 77 4 31 2 94 16 7 10 70 5 14 24 Regions Visited 12 Branch Regions 2 Pre-discovered Areas . | . . . . . . . . . . . . . Known Exits Taken 11 | 1 1 1 1 1 . 1 1 1 1 1 1 . Unknown Exits Taken . | . . . . . . . . . . . . . Scrap Searched 4 | . . 4 . . . . . . . . . . Spaces Dug 1 | . . . . . . . 1 . . . . . Terrain Destroyed 546 | . . . . . . 117 79 6 97 124 37 86 Melee . | . . . . . . . . . . . . . Projectile 30 | . . . . . . . 14 6 6 3 . 1 AOE 516 | . . . . . . 117 65 . 91 121 37 85 Terrain Rammed . | . . . . . . . . . . . . . Walls Destroyed . | . . . . . . . . . . . . . Machines Disabled . | . . . . . . . . . . . . . Actions | -11 -10 -10 -8 -7 -7 -6 -5 -4 -4 -3 -2 -1 --------- Run | Yrd Mat Sub Mat Fac DSF Fac Fac Fac Ext Res Res Acc Total 4518 | . 585 70 484 53 242 504 297 388 737 132 392 634 Wait 91 | . . 1 4 . . 1 20 . . . 49 16 Move 3903 | . 536 64 383 50 202 434 231 366 642 109 314 572 Hop . | . . . . . . . . . . . . . Pick Up 54 | . 8 1 12 . 7 3 7 4 8 2 2 . Fast Attach 65 | . 6 . 1 . 1 1 1 . 17 5 11 22 Attach 35 | . 2 . 5 2 . 7 3 2 11 3 . . Detach 3 | . . . 1 . . 2 . . . . . . Swap 53 | . 6 2 15 . 6 6 7 4 7 . . . Drop 61 | . 7 . 17 . 10 8 3 5 7 . 4 . Fire 205 | . 18 2 39 1 16 40 25 7 31 10 5 11 Melee 28 | . . . 6 . . . . . 5 3 2 12 Ram 6 | . . . . . . . . . . . 5 1 Kick 4 | . 2 . 1 . . . . . 1 . . . Crush 4 | . . . . . . 2 . . 2 . . . Escape Stasis 2 | . . . . . . . . . 2 . . . Rewire 4 | . . . . . . . . . 4 . . . Trap . | . . . . . . . . . . . . . Miscellaneous . | . . . . . . . . . . . . . Route ------- -11/Scrapyard -10/Materials (discovered 3 exits: *Mat x2 / *Sub) -10/Subcaves -8/Materials -7/Factory -7/DSF -6/Factory -5/Factory (discovered 4 exits: *Fac x2 / Upp x2) -4/Factory (discovered 2 exits: *Upp / *Ext) -4/Extension (discovered 2 exits: *Res / *Cet) -3/Research -2/Research -1/Access History --------- Turn | Location | Event 1 | -11/Scrapyard | Identified exit to Materials 1 | -11/Scrapyard | Discovered exit to Materials (range 0) 1 | -11/Scrapyard | Entered Materials 1 | -10/Materials | Evolved 1 slot: Weapon x1 415 | -10/Materials | Build established: Hacker-Gunner 550 | -10/Materials | Identified exit to Materials 550 | -10/Materials | Discovered exit to Materials (range 16) 762 | -10/Materials | Discovered exit to Materials (range 11) 1020 | -10/Materials | Identified exit to Subcaves 1020 | -10/Materials | Discovered exit to Subcaves (range 7) 1028 | -10/Materials | Prayed at D.C.S.S. Altar Unit 1047 | -10/Materials | Entered Subcaves 1048 | -10/Subcaves | Approached by a straggling Scientist 1083 | -10/Subcaves | Identified exit to Materials 1083 | -10/Subcaves | Discovered exit to Materials (range 5) 1107 | -10/Subcaves | Disturbed a concealed Subdweller 1182 | -10/Subcaves | Entered Materials 1182 | -8/Materials | Evolved 4 slots: Propulsion x2, Utility x2 1384 | -8/Materials | X0-1V1 mutated your Propulsion slot to Weapon slot 1824 | -8/Materials | Identified exit to Factory 1824 | -8/Materials | Discovered exit to Factory (range 16) 1852 | -8/Materials | Build established: Hacker-Tank 1912 | -8/Materials | Entered Factory 1912 | -7/Factory | Evolved 2 slots: Propulsion x1, Weapon x1 1996 | -7/Factory | Identified exit to DSF 1997 | -7/Factory | Entered DSF 2042 | -7/DSF | Identified exit to Factory 2042 | -7/DSF | X0-1V1 revealed exit location to -6/Factory 2049 | -7/DSF | Additional patrols routed to DSF 2208 | -7/DSF | Build established: Hacker-Skirmisher 2348 | -7/DSF | System corruption reached 10% 2374 | -7/DSF | Entered Factory 2374 | -6/Factory | Evolved 2 slots: Power x1, Utility x1 2459 | -6/Factory | Melee accuracy permanently improved by X0-1V1 (+6%; -60 max core) 2478 | -6/Factory | X0-1V1 released a cloud of subatomizers 2636 | -6/Factory | X0-1V1 activates XOMVISION 2694 | -6/Factory | X0-1V1 redirected Transport squads to designated parking area 2728 | -6/Factory | Spotted B-75 Beast 2756 | -6/Factory | Destroyed B-75 Beast 2837 | -6/Factory | X0-1V1 upgraded hostiles (x1) 2930 | -6/Factory | X0-1V1 sent someone to keep an eye on you 2988 | -6/Factory | Garrison activated, responded to threat 3031 | -6/Factory | X0-1V1 announced a LAN party 3110 | -6/Factory | X0-1V1 sent you into danger 3114 | -6/Factory | Cargo convoy interrupted 3155 | -6/Factory | Identified exit to Factory 3155 | -6/Factory | Discovered exit to Factory (range 9) 3159 | -6/Factory | X0-1V1 sent allied H-66 Slayer (x5) 3176 | -6/Factory | Entered another Factory area 3176 | -5/Factory | Accompanied by 4 allies 3176 | -5/Factory | Evolved 2 slots: Propulsion x1, Weapon x1 3279 | -5/Factory | X0-1V1 foreshadows a heat wave 3291 | -5/Factory | Lost 3 allies 3374 | -5/Factory | X0-1V1 added 0b10 threat records associated with you (considerable) 3446 | -5/Factory | Ambient heat levels rising (+10) 3467 | -5/Factory | Build established: Hacker-Executioner 3481 | -5/Factory | Identified exit to Upper Caves 3481 | -5/Factory | X0-1V1 revealed exit location to -5/Upper Caves 3557 | -5/Factory | X0-1V1 revealed exit location to -5/Upper Caves 3618 | -5/Factory | Ambient heat levels rising (+10) 3628 | -5/Factory | Identified exit to Factory 3628 | -5/Factory | Discovered exit to Factory (range 16) 3640 | -5/Factory | X0-1V1 revealed exit location to -4/Factory 3663 | -5/Factory | Entered another Factory area 3663 | -4/Factory | Evolved 2 slots: Propulsion x1, Utility x1 3896 | -4/Factory | X0-1V1 sent you into danger 3945 | -4/Factory | Build established: Scavenger-Executioner 4013 | -4/Factory | Identified exit to Upper Caves 4013 | -4/Factory | Discovered exit to Upper Caves (range 16) 4217 | -4/Factory | Identified exit to Extension 4217 | -4/Factory | Discovered exit to Extension (range 14) 4232 | -4/Factory | KI resistance permanently improved by X0-1V1 (+10%; -100 max core) 4237 | -4/Factory | Weapon slot count temporarily expanded by X0-1V1 (+1) 4264 | -4/Factory | Entered Extension 4660 | -4/Extension | Spotted B-86 Titan 4689 | -4/Extension | X0-1V1 downgraded hostiles (x2) 4690 | -4/Extension | Spotted B-75 Beast 4698 | -4/Extension | Spotted B-86 Titan 4717 | -4/Extension | Destroyed B-75 Beast 4789 | -4/Extension | Core integrity fell below 50% 4815 | -4/Extension | Core integrity fell below 20% 4837 | -4/Extension | Released all parts (4) 4867 | -4/Extension | Lost 22 parts (4p6n4u8w) 4962 | -4/Extension | Core integrity permanently improved by X0-1V1 (+300) 4975 | -4/Extension | X0-1V1 added 0b10 threat records associated with you (considerable) 5066 | -4/Extension | System corruption reached 10% 5225 | -4/Extension | X0-1V1 sent allied Striker (x1) 5271 | -4/Extension | Build established: Hacker-Executioner 5285 | -4/Extension | Identified exit to Research 5285 | -4/Extension | Discovered exit to Research (range 21) 5286 | -4/Extension | Disrupted transfer network 5287 | -4/Extension | Identified exit to Cetus 5287 | -4/Extension | Discovered exit to Cetus (range 20) 5369 | -4/Extension | Entered Research 5369 | -3/Research | Evolved 2 slots: Utility x1, Weapon x1 5423 | -3/Research | Garrison activated, responded to threat 5461 | -3/Research | Destroyed 7 combat bots 5500 | -3/Research | Lost 3 parts (1p2n) 5544 | -3/Research | Identified exit to Research 5544 | -3/Research | Discovered exit to Research (range 4) 5557 | -3/Research | Entered another Research area 5557 | -2/Research | Evolved 2 slots: Utility x2 5666 | -2/Research | Lost 4 parts (2p1n1w) 5752 | -2/Research | Released all parts (9) 5757 | -2/Research | System corruption reached 10% 5781 | -2/Research | Lost 10 parts (4n2u4w) 5824 | -2/Research | Spotted B-90 Cyclops 5857 | -2/Research | Core integrity fell below 50% 5894 | -2/Research | Identified exit to Access 5894 | -2/Research | Discovered exit to Access (range 21) 5905 | -2/Research | Entered Access 5905 | -1/Access | Evolved 2 slots: Propulsion x1, Utility x1 6032 | -1/Access | Build established: Hacker-Mutant 6053 | -1/Access | Found Fusion Bomb Launcher 6059 | -1/Access | X0-1V1 downgraded hostiles (x3) 6136 | -1/Access | Lost 4 parts (3n1u) 6148 | -1/Access | X0-1V1 sent allied Quarantine Guard (x2) 6283 | -1/Access | X0-1V1 mutated your Weapon slot to Power slot 6373 | -1/Access | Spotted B-99 Colossus 6378 | -1/Access | Lost 5 parts (1p1n2u1w) 6379 | -1/Access | X0-1V1 sent allied Executioner (x2) 6427 | -1/Access | Core integrity fell below 50% 6467 | -1/Access | Lost 8 parts (1p1n1u5w) 6495 | -1/Access | Core integrity fell below 20% 6545 | -1/Access | Core integrity restored by X0-1V1 (+400) 6548 | -1/Access | Lost 3 parts (1n1u1w) 6558 | -1/Access | Destroyed by S-43 Plague with Heavy Machine Gun Last Messages --------------- 06532_ Slug penetrates Wall. 06534_ X0-1V1 sends the all clear message. (reinforcement recalled) 06538_ System corrupted: Matter fused (-10). X0-1V1's Piety Tracker suddenly appears amidst shimmering waves of color. 06545_ X0-1V1: "See? It buffs right out!" (+400 core integrity) 06546_ Slug penetrates Wall. 06549_ Slammed into G-73 Enforcer. 06551_ Penetrated by Slug. 06552_ Slug penetrates Wall. 06552_ W-44 Eye distress signal alerts nearby ally. [Achievement: Hunted] 06555_ S-43 Plague destroyed. 06557_ Acquired Xenon Bombardment Thruster. 06558_ P-80 Master resets G-73 Enforcer, system corruption cleaned. 06558_ X0-1V1 bursts into laughter! [Achievement: 20k Club] Map ----- +----------------------------------------------------+ | " #?????????????????????????????????????????? | | """ #?????????????????????????????????????????? | | """ % #?????????????????????????????????????????? | | " #?????????????????????????????????????????? | | #?????????????????????????????????????????? | | #?????????????????????????????????????????? | | % #?????????????????????????????????????????? | | % ?##############????????????????????????????? | | ???# #????????????????????????????? | | #+###### #????????????????????????????? | | / #????????????????????????????? | | #### #????????????????????????????? | | ^ #??# ! #????????????????????????????? | | #??# #????????????????????????????? | | %#??# #????????????????????????????? | | % #??# ] #????????????????????????????? | | #??# #????????????????????????????? | | #??# = #????????????????????????????? | | %#??# * #????????????????????????????? | | #??# ! #????????????????????????????? | | ##########+#####################+##??????????? | | p p p ?????????? | | % g ?????????? | | %% %% g s s ????????? | | R % g A ????????? | | @ s ????????? | | w ????????? | | +################### ############/##??????????? | | ???????????????????# #????????????????????????? | | ???????????????????# #????????????????????????? | | ???????????????????# s #????????????????????????? | | ???????????????????# +????????????????????????? | | ???????????????????#s #????????????????????????? | | ???????????????????# #????????????????????????? | | ??????????????????? #????????????????????????? | | ??????????????????? #????????????????????????? | | ?????????????????? ?????????????????????????? | | ??????????????????= ??????????????????????????? | | ???????????????????? ??????????????????????????? | | ?????????????????????????????????????????????????? | | ?????????????????????????????????????????????????? | | ?????????????????????????????????????????????????? | | ?????????????????????????????????????????????????? | | ?????????????????????????????????????????????????? | | ?????????????????????????????????????????????????? | | ?????????????????????????????????????????????????? | | ?????????????????????????????????????????????????? | | ?????????????????????????????????????????????????? | | ?????????????????????????????????????????????????? | | ?????????????????????????????????????????????????? | +----------------------------------------------------+ Best States ------------- Heat Dissipation 125 Energy Generation 50 Energy Capacity 1405 Matter Stores 468 Matter Capacity 800 Sight Range 21 Robot Scan Range 16 Terrain Scan Density 10 Power Amplification 30 Additional Mass Support 6 Armor Coverage 600 Resistance: KI 70 Resistance: TH 35 Resistance: EX 35 Resistance: EM 35 Resistance: I 35 Resistance: S 35 Resistance: P 35 Weapon Cycling 20 Evasion (%) 70 Target Analysis 6 Recoil Reduction 6 Offensive Hacking 20 Authchip Count 1 Item Schematics ----------------- None Robot Schematics ------------------ None Fabricated ------------ Nothing Repaired ---------- Nothing Studied --------- Hvy. Assault Rifle | -8/Materials | Hacked Autogun | -8/Materials | Hacked Aluminum Leg | -8/Materials | Hacked Lgt. Treads | -8/Materials | Hacked Lgt. Ion Engine | -8/Materials | Hacked Lgt. Nuclear Core | -8/Materials | Hacked Assault Rifle | -8/Materials | Hacked Alien Tech Used ----------------- None Achievements -------------- 20k Club Chaos Is Inevitable Dangerous Findings Denied? Executioner Factory Defaults Hunted Knowing Is Half The Battle Like A Rock Maybe Next Time I'll Detach My Launcher Challenges ------------ None Game ------ Seed AdvancedRefineryFlightbrick Manual? 0 Play Time 01:24:13 Cumulative 11.5 hours Start 2026.07.30 @ 22:04:41 End 2026.08.01 @ 20:29:31 Sessions 9 Manual Loads 0 Difficulty Explorer Special Mode None Game No. 16 Rogue 0 Adventurer 0 Explorer 16 Win Type - Total 0 Types 0/0/0/0/0/0/0/0/0/0 Lore% 10 Gallery% 17 Achievement% 16 Wizard Run 0 Options --------- Layout 2 ASCII 0 Keyboard 1 Movement Vi Keybinds 0 Fullscreen 0 Font 20/Terminus Map View 59x48 Zoom Use 0% Tactical HUD 1 Map Filters NONE Filters NONE Steam 1 RUN: 346177d1-fa86-4127-9f31-417562659636